{"text_format":"1","workbook":"xlsx","n_sheets":1,"sheets":["Conversion"],"not_rendered":{"charts":0,"images":0,"macros":1,"external_links":0,"defined_names":37,"comments":0,"pivot_tables":0},"unopened":[],"bounds":{"document_bytes":16777216,"sheet_cells":100000,"rows_first":2000,"rows_last":500,"rows_between":2000,"halvings":0,"cell_chars":16384,"cell_head_chars":4096},"cells_cut":0,"cells_raw":0,"read":"whole","date_system":"1900"}

{"sheet":"Conversion","index":0,"n_rows":76,"n_cols":22,"rows_kept":76,"cut":false,"hidden":false,"merged":[[0,3,0,4],[13,2,13,5],[16,2,16,5],[17,3,17,4],[1,1,2,6],[5,2,7,3],[5,4,7,5],[8,2,10,3],[8,4,10,5],[3,4,3,5],[4,2,4,3],[4,4,4,5],[3,2,3,3]]}
[]
[null,"Convertion Table   © Rocketwaveuk"]
[null,null,null,null,null,null,null,null,null,null,null,null,null,null,null,null,null,null,null,null,null,{"$f":"Deci/100","v":0.66666666666665719}]
[null,null,"To Avoid Over Writing Formula's Keep Locked using smile buttons",null,"Unlocked",null,null,null,null,null,null,null,null,null,null,null,null,null,null,null,null,0]
[null,null,"Amount",null,"Convert to",null,null,null,null,null,null,null,null,null,null,null,null,null,null,null,null,{"$f":"Thou*1000","v":0}]
[null,null,16,null,"Deg F > Deg C",null,null,null,null,null,"Lookup","Value","Con_Rate","New Scale",null,null,null,null,null,null,null,100]
[null,null,null,null,null,null,null,null,null,null,1,"Select Here",0,"Converted To",null,null,null,null,null,null,null,40]
[null,null,null,null,null,null,null,null,null,null,2,"<<<        Length       >>>",null,null,null,null,null,null,null,null,null,6]
[null,null,{"$f":"VLOOKUP(E6,L6:N79,2,0)","v":-8.8888888888888893},null,{"$f":"VLOOKUP(E6,L6:N79,3,0)","v":"Centigrade"},null,null,null,null,null,3,"cm > Inches",{"$f":"Val_Total*0.3937","v":6.2991999999999999},"Inches",null,null,null,null,null,null,null,66.666666666665719]
[null,null,null,null,null,null,null,null,null,null,4,"Metres > Feet",{"$f":"Val_Total*3.2808","v":52.492800000000003},"Feet",null,null,null,null,null,null,null,{"$f":"C6","v":16}]
[null,null,null,null,null,null,null,null,null,null,5,"Metres > Yards",{"$f":"Val_Total/0.9144","v":17.497812773403325},"Yards",null,null,null,null,null,null,null,{"$f":"Conv_Answer","v":-8.8888888888888893}]
[null,null,1,null,null,null,null,null,null,null,6,"km > miles",{"$f":"Val_Total/1.609","v":9.944064636420137},"Miles",null,null,null,null,null,null,null,{"$f":"QUOTIENT(Ans_Total,1000)*1000","v":0}]
[null,null,null,null,null,null,null,null,null,null,7,"Inches > cm",{"$f":"Val_Total*2.54","v":40.64},"Centimetres",null,null,null,null,null,null,null,{"$f":"QUOTIENT(Ans_Total-Ans_Thou,100)*100","v":0}]
[null,null,"Below You Can Set Exchange Rates To the £ ",null,null,null,null,null,null,null,8,"Inches > Feet",{"$f":"Val_Total/12","v":1.3333333333333333},"Feet",null,null,null,null,null,null,null,{"$f":"QUOTIENT(Ans_Total-Ans_Thou-Ans_Hund,10)*10","v":0}]
[null,null,"Dollars","Pesos","Euros","Yen",null,null,null,null,9,"Feet > Yards",{"$f":"Val_Total*0.3333","v":5.3327999999999998},"Yards",null,null,null,null,null,null,null,{"$f":"QUOTIENT(Ans_Total-Ans_Thou-Ans_Hund-Ans_Tens,1)","v":-8}]
[null,null,1.33,61.99,1.19,138.22999999999999,null,null,null,null,10,"Feet > Metre",{"$f":"Val_Total*0.3048","v":4.8768000000000002},"Metres",null,null,null,null,null,null,null,{"$f":"Ans_Total-Ans_Thou-Ans_Hund-Ans_Tens-Ans_Units","v":-0.88888888888888928}]
[null,null,"Set The Value For V.A.T %",null,null,null,null,null,null,null,11,"Yards > Metres",{"$f":"Val_Total*0.9144","v":14.6304},"Metres",null,null,null,null,null,null,null,{"$f":"Ans_Thou/1000","v":0}]
[null,null,null,0.2,null,null,null,null,null,null,12,"Yards > Feet",{"$f":"Val_Total*3","v":48},"Feet"]
[null,null,null,null,null,null,null,null,null,null,13,"Yards > Miles",{"$f":"Val_Total/1760","v":9.0909090909090905E-3},"Miles"]
[null,null,null,null,null,null,null,null,null,null,14,"Chains > Yards",{"$f":"Val_Total*22","v":352},"Yards",null,null,null,null,null,null,null,0]
[null,null,null,null,null,null,null,null,null,null,15,"Furlong > Miles",{"$f":"Val_Total/8","v":2},"Miles",null,null,null,null,null,null,null,100]
[null,null,null,null,null,null,null,null,null,null,16,"Miles > Km",{"$f":"Val_Total*1.609","v":25.744},"Kilometres",null,null,null,null,null,null,null,40]
[null,null,null,null,null,null,null,null,null,null,17,"<<<     WEIGHTS     >>>",null,null,null,null,null,null,null,null,null,6]
[null,null,null,null,null,null,null,null,null,null,18,"Grams > Ounces",{"$f":"Val_Total*0.0353","v":0.56479999999999997},"Ounces",null,null,null,null,null,null,null,0.66666666666665719]
[null,null,null,null,null,null,null,null,null,null,19,"Kilos > lbs",{"$f":"Val_Total*2.2046","v":35.273600000000002},"Pounds",null,null,null,null,null,null,null,{"$f":"Swap_Deci*100","v":66.666666666665719}]
[null,null,null,null,null,null,null,null,null,null,20,"Kilos > Stones",{"$f":"Val_Total/6.3503","v":2.5195660047556809},"Stones"]
[null,null,null,null,null,null,null,null,null,null,21,"Ounces > Grams",{"$f":"Val_Total*28.35","v":453.6},"Grams"]
[null,null,null,null,null,null,null,null,null,null,22,"Ounces > Lbs",{"$f":"Val_Total/16","v":1},"Pounds"]
[null,null,null,null,null,null,null,null,null,null,23,"Ibs > Ounces",{"$f":"Val_Total*16","v":256},"Ounces"]
[null,null,null,null,null,null,null,null,null,null,24,"lbs > Kilos",{"$f":"Val_Total*0.4536","v":7.2576000000000001},"Kilos"]
[null,null,null,null,null,null,null,null,null,null,25,"lbs > Stones",{"$f":"Val_Total/14","v":1.1428571428571428},"Stones"]
[null,null,null,null,null,null,null,null,null,null,26,"Stones > Kilos",{"$f":"Val_Total*6.3503","v":101.6048},"Kilos"]
[null,null,null,null,null,null,null,null,null,null,27,"Stone > Cwt",{"$f":"Val_Total/8","v":2},"Cwt"]
[null,null,null,null,null,null,null,null,null,null,28,"Tons > Stones",{"$f":"(Val_Total*10)*8","v":1280},"Stones"]
[null,null,null,null,null,null,null,null,null,null,29,"<<<       FLUIDS       >>>"]
[null,null,null,null,null,null,null,null,null,null,30,"m`ltrs > Fluid oz",{"$f":"((Val_Total/1000)/0.568)*20","v":0.56338028169014098},"Fluid Oz"]
[null,null,null,null,null,null,null,null,null,null,31,"m'Litres > Pints",{"$f":"Val_Total/568","v":2.8169014084507043E-2},"Pints"]
[null,null,null,null,null,null,null,null,null,null,32,"Litres > Pints",{"$f":"Val_Total/0.568","v":28.169014084507044},"Pints"]
[null,null,null,null,null,null,null,null,null,null,33,"Litres > Gallons",{"$f":"Val_Total/4.546","v":3.5195776506819181},"Gallons"]
[null,null,null,null,null,null,null,null,null,null,34,"Fluid oz > m`Ltrs",{"$f":"(Val_Total/20)*568","v":454.40000000000003},"m`Litres"]
[null,null,null,null,null,null,null,null,null,null,35,"Pints > m`Litres",{"$f":"Val_Total*568","v":9088},"m`Litres"]
[null,null,null,null,null,null,null,null,null,null,36,"Pints > Litres",{"$f":"Val_Total*0.568","v":9.0879999999999992},"Litres"]
[null,null,null,null,null,null,null,null,null,null,37,"Pints > Fluid Oz",{"$f":"Val_Total*20","v":320},"Fluid Ozs"]
[null,null,null,null,null,null,null,null,null,null,38,"Pints > Gallons",{"$f":"Val_Total/8","v":2},"Gallons"]
[null,null,null,null,null,null,null,null,null,null,39,"Gallons > Litres",{"$f":"Val_Total*4.546","v":72.736000000000004},"Litres"]
[null,null,null,null,null,null,null,null,null,null,40,"Choose",0,"Select Above"]
[null,null,null,null,null,null,null,null,null,null,41,"<<< TEMPERATURE >>>"]
[null,null,null,null,null,null,null,null,null,null,42,"Deg F > Deg C",{"$f":"(Val_Total-32)/1.8","v":-8.8888888888888893},"Centigrade"]
[null,null,null,null,null,null,null,null,null,null,43,"Deg C > Deg F",{"$f":"(Val_Total*1.8)+32","v":60.8},"Fahrenheit"]
[null,null,null,null,null,null,null,null,null,null,44,"<<<       POWER       >>>"]
[null,null,null,null,null,null,null,null,null,null,45,"Peek > Rms",{"$f":"Val_Total*0.707","v":11.311999999999999},"Root Mean Sq"]
[null,null,null,null,null,null,null,null,null,null,46,"Rms > Peek",{"$f":"(Val_Total/70.7)*100","v":22.630834512022631},"Peek Value"]
[null,null,null,null,null,null,null,null,null,null,47,"<<<    CURRENCY    >>>"]
[null,null,null,null,null,null,null,null,null,null,48,"Include      V.A.T",{"$f":"(Val_Total*Vat_Value)+Val_Total","v":19.2},"Inc   V.A.T"]
[null,null,null,null,null,null,null,null,null,null,49,"Exclude     V.A.T",{"$f":"(Val_Total/((Vat_Value*100)+100))*100","v":13.333333333333334},"Exc   V.A.T"]
[null,null,null,null,null,null,null,null,null,null,50,"Pound > Euros",{"$f":"Val_Total*Euro_Value","v":19.04},"Euros"]
[null,null,null,null,null,null,null,null,null,null,51,"Pound > Dollar",{"$f":"Val_Total*Dollar_Value","v":21.28},"Dollars"]
[null,null,null,null,null,null,null,null,null,null,52,"Pound > Yen",{"$f":"Val_Total*Yen_Value","v":2211.6799999999998},"Yen"]
[null,null,null,null,null,null,null,null,null,null,53,"Pounds > Pesos",{"$f":"Val_Total*Peso_Value","v":991.84},"Pesos"]
[null,null,null,null,null,null,null,null,null,null,54,"Dollar > Yen",{"$f":"Val_Total*Pound_Yen/Pound_Dollar","v":1662.9172932330825},"Yen"]
[null,null,null,null,null,null,null,null,null,null,55,"Dollar > Pound",{"$f":"Val_Total/Dollar_Value","v":12.030075187969924},"Pounds"]
[null,null,null,null,null,null,null,null,null,null,56,"Euros > Pound",{"$f":"Val_Total/Euro_Value","v":13.445378151260504},"Pounds"]
[null,null,null,null,null,null,null,null,null,null,57,"Pesos > Pound",{"$f":"Val_Total/Peso_Value","v":0.25810614615260524},"Pounds"]
[null,null,null,null,null,null,null,null,null,null,58,"Yen > Pound",{"$f":"Val_Total/Yen_Value","v":0.11574911379584751},"Pounds"]
[null,null,null,null,null,null,null,null,null,null,59,"Yen > Dollar",{"$f":"Val_Total*Pound_Dollar/Pound_Yen","v":0.15394632134847719},"Dollars"]
[null,null,null,null,null,null,null,null,null,null,60,"<<<      Formula      >>>"]
[null,null,null,null,null,null,null,null,null,null,61,"Squared Num",{"$f":"Val_Total^2","v":256},"Squared"]
[null,null,null,null,null,null,null,null,null,null,62,"Cubed Num",{"$f":"Val_Total^3","v":4096},"Cubed"]
[null,null,null,null,null,null,null,null,null,null,63,"Square Root Num",{"$f":"SQRT(Val_Total)","v":4},"Square Root"]
[null,null,null,null,null,null,null,null,null,null,64,"Cube Root Num",{"$f":"Val_Total^(1/3)","v":2.5198420997897459},"Cube Root"]
[null,null,null,null,null,null,null,null,null,null,65,"Radius/Circumference",{"$f":"2*PI()*Val_Total","v":100.53096491487338},"Circumference"]
[null,null,null,null,null,null,null,null,null,null,66,"Deg/Radians",{"$f":"Val_Total/57.2957","v":0.27925306785675019},"Radians"]
[null,null,null,null,null,null,null,null,null,null,67,"Radians/Deg",{"$f":"Val_Total*57.2957","v":916.73119999999994},"Degrees"]
[null,null,null,null,null,null,null,null,null,null,68,"PI * Number",{"$f":"Val_Total*PI()","v":50.26548245743669},"Number Result"]
[null,null,null,null,null,null,null,null,null,null,69,"1/X",{"$f":"1/Val_Total","v":6.25E-2},"Decimal"]
[null,null,null,null,null,null,null,null,null,null,70,"Peek/RMS",{"$f":"Val_Total*0.707","v":11.311999999999999},"Rms Value"]